[Event "Titled Tuesday Blitz October 31 Early 2023"]
[White "Daneshvar, Bardiya"]
[Black "Molina, Roberto Junio Brito"]
[WhiteFideId "12576468"]
[BlackFideId "2109450"]
[WhiteElo "2953"]
[BlackElo "2837"]
[Result "1-0"]
[Round "7"]
[TimeControl "180+1"]
[Date "2023.10.31"]
[WhiteClock "0:00:48"]
[BlackClock "0:00:00"]
[Board "8"]

1. Nf3 {[%clk 0:03:00]}  d5 {[%clk 0:03:00]} 2. g3 {[%clk 0:03:01]}  c6 {[%clk 0:02:58]} 3. Bg2 {[%clk 0:03:02]}  Bg4 {[%clk 0:02:58]} 4. O-O {[%clk 0:03:03]}  Nd7 {[%clk 0:02:57]} 5. a4 {[%clk 0:03:03]}  e5 {[%clk 0:02:50]} 6. d3 {[%clk 0:03:03]}  Bd6 {[%clk 0:02:50]} 7. c3 {[%clk 0:03:03]}  Ne7 {[%clk 0:02:50]} 8. b4 {[%clk 0:03:03]}  a5 {[%clk 0:02:49]} 9. b5 {[%clk 0:03:03]}  O-O {[%clk 0:02:48]} 10. Ba3 {[%clk 0:03:02]}  Bxa3 {[%clk 0:02:48]} 11. Nxa3 {[%clk 0:03:03]}  f6 {[%clk 0:02:47]} 12. h3 {[%clk 0:03:03]}  Be6 {[%clk 0:02:46]} 13. d4 {[%clk 0:03:03]}  e4 {[%clk 0:02:46]} 14. Nd2 {[%clk 0:03:03]}  f5 {[%clk 0:02:46]} 15. e3 {[%clk 0:03:03]}  Nf6 {[%clk 0:02:43]} 16. c4 {[%clk 0:03:03]}  g5 {[%clk 0:02:41]} 17. bxc6 {[%clk 0:03:04]}  bxc6 {[%clk 0:02:40]} 18. Nb3 {[%clk 0:03:05]}  dxc4 {[%clk 0:02:32]} 19. Nc5 {[%clk 0:03:05]}  Bd5 {[%clk 0:02:32]} 20. Rc1 {[%clk 0:03:04]}  f4 {[%clk 0:02:31]} 21. Nxc4 {[%clk 0:03:02]}  Nf5 {[%clk 0:02:26]} 22. g4 {[%clk 0:02:57]}  Nh4 {[%clk 0:02:08]} 23. Ne5 {[%clk 0:02:56]}  Qe7 {[%clk 0:02:00]} 24. Rb1 {[%clk 0:02:56]}  Rfb8 {[%clk 0:01:59]} 25. Qd2 {[%clk 0:02:52]}  f3 {[%clk 0:01:57]} 26. Bh1 {[%clk 0:02:52]}  Qc7 {[%clk 0:01:42]} 27. Rxb8+ {[%clk 0:02:44]}  Qxb8 {[%clk 0:01:40]} 28. Rc1 {[%clk 0:02:38]}  Qb4 {[%clk 0:01:37]} 29. Qd1 {[%clk 0:02:37]}  Qb8 {[%clk 0:01:18]} 30. Rb1 {[%clk 0:02:36]}  Qc8 {[%clk 0:01:18]} 31. Rb7 {[%clk 0:02:30]}  Rb8 {[%clk 0:01:16]} 32. Qb1 {[%clk 0:02:30]}  Rxb7 {[%clk 0:01:16]} 33. Qxb7 {[%clk 0:02:31]}  Qxb7 {[%clk 0:01:13]} 34. Nxb7 {[%clk 0:02:32]}  Bb3 {[%clk 0:01:10]} 35. Nxa5 {[%clk 0:02:23]}  Bxa4 {[%clk 0:01:10]} 36. Naxc6 {[%clk 0:02:24]}  Bxc6 {[%clk 0:01:10]} 37. Nxc6 {[%clk 0:02:24]}  Kf7 {[%clk 0:01:10]} 38. Kh2 {[%clk 0:02:22]}  Ke6 {[%clk 0:01:09]} 39. Kg3 {[%clk 0:02:22]}  Kd6 {[%clk 0:01:03]} 40. Ne5 {[%clk 0:02:17]}  Ke6 {[%clk 0:01:03]} 41. Nc4 {[%clk 0:02:15]}  Nd5 {[%clk 0:01:00]} 42. Kh2 {[%clk 0:02:11]}  Nc3 {[%clk 0:00:59]} 43. Kg1 {[%clk 0:02:07]}  Ng6 {[%clk 0:00:55]} 44. Kf1 {[%clk 0:02:07]}  Ne7 {[%clk 0:00:54]} 45. Ne5 {[%clk 0:02:03]}  Ned5 {[%clk 0:00:51]} 46. Ke1 {[%clk 0:02:02]}  Nb4 {[%clk 0:00:47]} 47. Nxf3 {[%clk 0:01:56]}  exf3 {[%clk 0:00:45]} 48. Bxf3 {[%clk 0:01:56]}  Ncd5 {[%clk 0:00:33]} 49. Kd2 {[%clk 0:01:54]}  h6 {[%clk 0:00:33]} 50. Bd1 {[%clk 0:01:51]}  Nf6 {[%clk 0:00:30]} 51. f3 {[%clk 0:01:50]}  Nbd5 {[%clk 0:00:24]} 52. Bb3 {[%clk 0:01:48]}  Ke7 {[%clk 0:00:25]} 53. Kd3 {[%clk 0:01:46]}  Nb4+ {[%clk 0:00:21]} 54. Kc3 {[%clk 0:01:46]}  Nbd5+ {[%clk 0:00:21]} 55. Kd2 {[%clk 0:01:47]}  Nb4 {[%clk 0:00:21]} 56. e4 {[%clk 0:01:46]}  Nc6 {[%clk 0:00:19]} 57. Ke3 {[%clk 0:01:45]}  Na5 {[%clk 0:00:18]} 58. Ba2 {[%clk 0:01:41]}  Nd7 {[%clk 0:00:18]} 59. f4 {[%clk 0:01:38]}  gxf4+ {[%clk 0:00:16]} 60. Kxf4 {[%clk 0:01:39]}  Nc6 {[%clk 0:00:15]} 61. Ke3 {[%clk 0:01:39]}  Nb4 {[%clk 0:00:13]} 62. Bb3 {[%clk 0:01:37]}  Kf6 {[%clk 0:00:13]} 63. h4 {[%clk 0:01:37]}  Kg6 {[%clk 0:00:10]} 64. e5 {[%clk 0:01:35]}  Nb6 {[%clk 0:00:10]} 65. Ke4 {[%clk 0:01:30]}  Nc6 {[%clk 0:00:10]} 66. d5 {[%clk 0:01:29]}  Na5 {[%clk 0:00:09]} 67. Bc2 {[%clk 0:01:28]}  Kf7 {[%clk 0:00:07]} 68. Kd4 {[%clk 0:01:28]}  Ke7 {[%clk 0:00:07]} 69. d6+ {[%clk 0:01:23]}  Kf7 {[%clk 0:00:07]} 70. Bb1 {[%clk 0:01:18]}  Nd7 {[%clk 0:00:05]} 71. Ba2+ {[%clk 0:01:17]}  Ke8 {[%clk 0:00:05]} 72. Bd5 {[%clk 0:01:14]}  Nb6 {[%clk 0:00:04]} 73. e6 {[%clk 0:01:10]}  Kd8 {[%clk 0:00:02]} 74. Be4 {[%clk 0:01:03]}  Nc8 {[%clk 0:00:02]} 75. Kd5 {[%clk 0:00:53]}  Nb6+ {[%clk 0:00:01]} 76. Kc5 {[%clk 0:00:50]}  Nc8 {[%clk 0:00:00]} 77. Bd5 {[%clk 0:00:48]} 1-0


[Site "https://www.chess.com"]

[Event "Titled Tuesday Blitz October 31 Early 2023"]
[White "Sychev, Klementy"]
[Black "Ilamparthi A R"]
[WhiteFideId "4114060"]
[BlackFideId "45015775"]
[WhiteElo "2836"]
[BlackElo "2924"]
[Result "0-1"]
[Round "7"]
[TimeControl "180+1"]
[Date "2023.10.31"]
[WhiteClock "0:00:00"]
[BlackClock "0:00:49"]
[Board "9"]

1. e4 {[%clk 0:03:00]}  c5 {[%clk 0:02:58]} 2. Nf3 {[%clk 0:03:00]}  Nc6 {[%clk 0:02:59]} 3. d4 {[%clk 0:03:00]}  cxd4 {[%clk 0:03:00]} 4. Nxd4 {[%clk 0:03:01]}  e5 {[%clk 0:03:00]} 5. Nb5 {[%clk 0:03:01]}  a6 {[%clk 0:03:01]} 6. Nd6+ {[%clk 0:03:01]}  Bxd6 {[%clk 0:03:01]} 7. Qxd6 {[%clk 0:03:01]}  Qf6 {[%clk 0:03:02]} 8. Qd2 {[%clk 0:02:18]}  Qg6 {[%clk 0:02:58]} 9. Nc3 {[%clk 0:02:18]}  Nf6 {[%clk 0:02:56]} 10. f3 {[%clk 0:02:15]}  Nd4 {[%clk 0:02:36]} 11. b3 {[%clk 0:02:02]}  d5 {[%clk 0:02:33]} 12. Ba3 {[%clk 0:01:40]}  dxe4 {[%clk 0:02:33]} 13. O-O-O {[%clk 0:01:39]}  Bf5 {[%clk 0:01:59]} 14. g4 {[%clk 0:01:34]}  Be6 {[%clk 0:01:47]} 15. g5 {[%clk 0:01:13]}  e3 {[%clk 0:01:23]} 16. Qd3 {[%clk 0:00:31]}  Nd5 {[%clk 0:01:22]} 17. Ne4 {[%clk 0:00:17]}  O-O-O {[%clk 0:01:22]} 18. c4 {[%clk 0:00:17]}  e2 {[%clk 0:01:16]} 19. cxd5 {[%clk 0:00:05]}  exd1=Q+ {[%clk 0:01:15]} 20. Qxd1 {[%clk 0:00:06]}  Bxd5 {[%clk 0:01:16]} 21. Bd3 {[%clk 0:00:04]}  Bxe4 {[%clk 0:01:08]} 22. Bxe4 {[%clk 0:00:05]}  Qxg5+ {[%clk 0:01:08]} 23. Kb1 {[%clk 0:00:03]}  f5 {[%clk 0:01:05]} 24. Bd3 {[%clk 0:00:02]}  Kb8 {[%clk 0:01:03]} 25. Rg1 {[%clk 0:00:01]}  Qf6 {[%clk 0:01:02]} 26. Qf1 {[%clk 0:00:01]}  g6 {[%clk 0:00:55]} 27. Bc1 {[%clk 0:00:01]}  Qc6 {[%clk 0:00:54]} 28. Rg3 {[%clk 0:00:00]}  Nb5 {[%clk 0:00:49]} 0-1


[Site "https://www.chess.com"]

[Event "Titled Tuesday Blitz October 31 Early 2023"]
[White "Alexandre, Anne Shopie Elizabeth"]
[Black "Mahdavi, Reza"]
[WhiteFideId "11902418"]
[BlackFideId "12595926"]
[WhiteElo "2832"]
[BlackElo "2921"]
[Result "1/2-1/2"]
[Round "7"]
[TimeControl "180+1"]
[Date "2023.10.31"]
[WhiteClock "0:00:48"]
[BlackClock "0:00:18"]
[Board "10"]

1. d4 {[%clk 0:03:00]}  Nf6 {[%clk 0:02:59]} 2. c4 {[%clk 0:03:01]}  e6 {[%clk 0:03:00]} 3. Nf3 {[%clk 0:03:01]}  d5 {[%clk 0:02:58]} 4. Nc3 {[%clk 0:03:01]}  Be7 {[%clk 0:02:48]} 5. Bf4 {[%clk 0:02:58]}  O-O {[%clk 0:02:46]} 6. e3 {[%clk 0:02:58]}  Nbd7 {[%clk 0:02:46]} 7. a3 {[%clk 0:02:57]}  c5 {[%clk 0:02:44]} 8. cxd5 {[%clk 0:02:56]}  Nxd5 {[%clk 0:02:45]} 9. Nxd5 {[%clk 0:02:56]}  exd5 {[%clk 0:02:46]} 10. dxc5 {[%clk 0:02:57]}  Nxc5 {[%clk 0:02:47]} 11. Be5 {[%clk 0:02:57]}  Bf6 {[%clk 0:02:42]} 12. Bxf6 {[%clk 0:02:56]}  Qxf6 {[%clk 0:02:43]} 13. Qd4 {[%clk 0:02:56]}  Qd6 {[%clk 0:02:42]} 14. Rd1 {[%clk 0:02:52]}  Rd8 {[%clk 0:02:40]} 15. Be2 {[%clk 0:02:51]}  Bf5 {[%clk 0:02:37]} 16. O-O {[%clk 0:02:44]}  Bc2 {[%clk 0:02:37]} 17. Rde1 {[%clk 0:02:44]}  Nb3 {[%clk 0:02:37]} 18. Qb4 {[%clk 0:02:30]}  Qxb4 {[%clk 0:02:23]} 19. axb4 {[%clk 0:02:31]}  a5 {[%clk 0:02:24]} 20. bxa5 {[%clk 0:02:28]}  Rxa5 {[%clk 0:02:25]} 21. Bd1 {[%clk 0:02:27]}  Rc8 {[%clk 0:02:23]} 22. h3 {[%clk 0:02:09]}  g6 {[%clk 0:02:19]} 23. Bxc2 {[%clk 0:01:58]}  Rxc2 {[%clk 0:02:20]} 24. Rb1 {[%clk 0:01:58]}  Ra2 {[%clk 0:01:47]} 25. Rfd1 {[%clk 0:01:57]}  Raxb2 {[%clk 0:01:46]} 26. Rxb2 {[%clk 0:01:57]}  Rxb2 {[%clk 0:01:47]} 27. Rxd5 {[%clk 0:01:58]}  Nc1 {[%clk 0:01:45]} 28. Ng5 {[%clk 0:01:39]}  Ne2+ {[%clk 0:01:44]} 29. Kh2 {[%clk 0:01:39]}  Nc3 {[%clk 0:01:44]} 30. Rd8+ {[%clk 0:01:35]}  Kg7 {[%clk 0:01:44]} 31. f4 {[%clk 0:01:33]}  h6 {[%clk 0:01:40]} 32. Nf3 {[%clk 0:01:33]}  Ne4 {[%clk 0:01:02]} 33. Ne5 {[%clk 0:01:31]}  Rd2 {[%clk 0:00:53]} 34. Rc8 {[%clk 0:01:24]}  Nd6 {[%clk 0:00:49]} 35. Rc7 {[%clk 0:01:21]}  Kf6 {[%clk 0:00:48]} 36. Ng4+ {[%clk 0:01:19]}  Ke6 {[%clk 0:00:46]} 37. Nxh6 {[%clk 0:01:19]}  b5 {[%clk 0:00:47]} 38. e4 {[%clk 0:01:09]}  Nxe4 {[%clk 0:00:33]} 39. Rxf7 {[%clk 0:00:56]}  Nd6 {[%clk 0:00:31]} 40. Rf8 {[%clk 0:00:54]}  Kd7 {[%clk 0:00:29]} 41. f5 {[%clk 0:00:51]}  gxf5 {[%clk 0:00:27]} 42. Nxf5 {[%clk 0:00:46]}  Rf2 {[%clk 0:00:27]} 43. Nxd6 {[%clk 0:00:46]}  Rxf8 {[%clk 0:00:28]} 44. Nxb5 {[%clk 0:00:47]}  Rf4 {[%clk 0:00:21]} 45. Nc3 {[%clk 0:00:47]}  Ke6 {[%clk 0:00:19]} 46. Ne2 {[%clk 0:00:47]}  Ra4 {[%clk 0:00:19]} 47. Kg3 {[%clk 0:00:47]}  Kf5 {[%clk 0:00:20]} 48. Kf3 {[%clk 0:00:46]}  Ra3+ {[%clk 0:00:20]} 49. Kf2 {[%clk 0:00:47]}  Kg5 {[%clk 0:00:17]} 50. Ng3 {[%clk 0:00:46]}  Kf4 {[%clk 0:00:17]} 51. Ne2+ {[%clk 0:00:46]}  Ke5 {[%clk 0:00:17]} 52. Ng3 {[%clk 0:00:46]}  Rb3 {[%clk 0:00:17]} 53. Ne2 {[%clk 0:00:47]}  Rb2 {[%clk 0:00:15]} 54. Kf3 {[%clk 0:00:47]}  Rb3+ {[%clk 0:00:15]} 55. Kf2 {[%clk 0:00:47]}  Kf5 {[%clk 0:00:16]} 56. Ng3+ {[%clk 0:00:47]}  Kf4 {[%clk 0:00:16]} 57. Ne2+ {[%clk 0:00:48]}  Ke4 {[%clk 0:00:16]} 58. Ng3+ {[%clk 0:00:48]}  Kf4 {[%clk 0:00:17]} 59. Ne2+ {[%clk 0:00:48]}  Ke4 {[%clk 0:00:18]} 60. Ng3+ {[%clk 0:00:48]}  Kf4 {[%clk 0:00:18]} 1/2-1/2


[Site "https://www.chess.com"]

[Event "Titled Tuesday Blitz October 31 Early 2023"]
[White "Elsa167"]
[Black "Javakhadze, Zurab"]
[BlackFideId "13603647"]
[WhiteElo "2989"]
[BlackElo "2799"]
[Result "1-0"]
[Round "7"]
[TimeControl "180+1"]
[Date "2023.10.31"]
[WhiteClock "0:00:10"]
[BlackClock "0:00:01"]
[Board "15"]

1. d4 {[%clk 0:03:00]}  d5 {[%clk 0:02:58]} 2. c4 {[%clk 0:02:57]}  e6 {[%clk 0:02:56]} 3. Nf3 {[%clk 0:02:57]}  Nf6 {[%clk 0:02:56]} 4. Nc3 {[%clk 0:02:57]}  Nbd7 {[%clk 0:02:56]} 5. cxd5 {[%clk 0:02:57]}  exd5 {[%clk 0:02:56]} 6. Qc2 {[%clk 0:02:56]}  c6 {[%clk 0:02:56]} 7. Bg5 {[%clk 0:02:56]}  Bd6 {[%clk 0:02:51]} 8. e3 {[%clk 0:02:55]}  O-O {[%clk 0:02:50]} 9. Bd3 {[%clk 0:02:56]}  h6 {[%clk 0:02:50]} 10. Bh4 {[%clk 0:02:56]}  Re8 {[%clk 0:02:51]} 11. O-O {[%clk 0:02:51]}  Nf8 {[%clk 0:02:51]} 12. Bg3 {[%clk 0:02:42]}  a6 {[%clk 0:02:24]} 13. Rae1 {[%clk 0:02:23]}  Nh5 {[%clk 0:02:08]} 14. Bxd6 {[%clk 0:02:23]}  Qxd6 {[%clk 0:02:09]} 15. Ne5 {[%clk 0:02:22]}  c5 {[%clk 0:02:06]} 16. f4 {[%clk 0:02:19]}  Nf6 {[%clk 0:02:03]} 17. h3 {[%clk 0:02:00]}  cxd4 {[%clk 0:01:57]} 18. exd4 {[%clk 0:02:01]}  Ne6 {[%clk 0:01:56]} 19. Nxf7 {[%clk 0:01:30]}  Kxf7 {[%clk 0:01:45]} 20. Bg6+ {[%clk 0:01:29]}  Kf8 {[%clk 0:01:31]} 21. Bxe8 {[%clk 0:01:30]}  Nxe8 {[%clk 0:01:28]} 22. Qg6 {[%clk 0:01:03]}  Nf6 {[%clk 0:01:18]} 23. Re5 {[%clk 0:00:38]}  Bd7 {[%clk 0:01:08]} 24. g4 {[%clk 0:00:26]}  Be8 {[%clk 0:00:24]} 25. Qd3 {[%clk 0:00:22]}  Bf7 {[%clk 0:00:24]} 26. g5 {[%clk 0:00:20]}  Ne4 {[%clk 0:00:24]} 27. gxh6 {[%clk 0:00:15]}  gxh6 {[%clk 0:00:19]} 28. Nxd5 {[%clk 0:00:14]}  N6c5 {[%clk 0:00:02]} 29. dxc5 {[%clk 0:00:12]}  Qxc5+ {[%clk 0:00:03]} 30. Kh2 {[%clk 0:00:10]}  Rd8 {[%clk 0:00:02]} 31. Qxe4 {[%clk 0:00:10]}  Bxd5 {[%clk 0:00:01]} 32. Qf5+ {[%clk 0:00:09]}  Kg7 {[%clk 0:00:01]} 33. Rg1+ {[%clk 0:00:09]}  Kh8 {[%clk 0:00:01]} 34. Qf6+ {[%clk 0:00:09]}  Kh7 {[%clk 0:00:01]} 35. Qg7# {[%clk 0:00:10]} 1-0


[Site "https://www.chess.com"]

[Event "Titled Tuesday Blitz October 31 Early 2023"]
[White "Hambleton, Aman"]
[Black "Chigaev, Maksim"]
[WhiteFideId "2606577"]
[BlackFideId "4108116"]
[WhiteElo "2797"]
[BlackElo "2920"]
[Result "0-1"]
[Round "7"]
[TimeControl "180+1"]
[Date "2023.10.31"]
[WhiteClock "0:00:02"]
[BlackClock "0:00:13"]
[Board "16"]

1. d4 {[%clk 0:03:00]}  Nf6 {[%clk 0:02:44]} 2. Bf4 {[%clk 0:02:50]}  d6 {[%clk 0:02:43]} 3. e3 {[%clk 0:02:49]}  g6 {[%clk 0:02:42]} 4. h3 {[%clk 0:02:50]}  Bg7 {[%clk 0:02:42]} 5. Nf3 {[%clk 0:02:50]}  O-O {[%clk 0:02:42]} 6. Be2 {[%clk 0:02:49]}  c5 {[%clk 0:02:40]} 7. c3 {[%clk 0:02:48]}  Qb6 {[%clk 0:02:39]} 8. Qb3 {[%clk 0:02:47]}  Be6 {[%clk 0:02:39]} 9. Qxb6 {[%clk 0:02:47]}  axb6 {[%clk 0:02:39]} 10. a3 {[%clk 0:02:48]}  Bd5 {[%clk 0:02:39]} 11. Nbd2 {[%clk 0:02:44]}  Bc6 {[%clk 0:02:39]} 12. O-O {[%clk 0:02:44]}  Nbd7 {[%clk 0:02:38]} 13. Rfe1 {[%clk 0:02:34]}  Rfd8 {[%clk 0:02:27]} 14. Bh2 {[%clk 0:02:07]}  b5 {[%clk 0:02:21]} 15. Bd3 {[%clk 0:02:05]}  e5 {[%clk 0:02:12]} 16. dxe5 {[%clk 0:01:44]}  dxe5 {[%clk 0:01:58]} 17. Bxe5 {[%clk 0:01:44]}  Nxe5 {[%clk 0:01:56]} 18. Nxe5 {[%clk 0:01:45]}  c4 {[%clk 0:01:56]} 19. Ndxc4 {[%clk 0:01:36]}  bxc4 {[%clk 0:01:54]} 20. Bxc4 {[%clk 0:01:36]}  Bd5 {[%clk 0:01:52]} 21. Rad1 {[%clk 0:01:31]}  Bxc4 {[%clk 0:01:46]} 22. Nxc4 {[%clk 0:01:32]}  Ne4 {[%clk 0:01:46]} 23. Nb6 {[%clk 0:01:21]}  Rab8 {[%clk 0:01:43]} 24. Kf1 {[%clk 0:01:14]}  Nc5 {[%clk 0:01:39]} 25. Ke2 {[%clk 0:01:11]}  f5 {[%clk 0:01:32]} 26. g4 {[%clk 0:00:50]}  Kf7 {[%clk 0:01:24]} 27. gxf5 {[%clk 0:00:49]}  gxf5 {[%clk 0:01:25]} 28. a4 {[%clk 0:00:44]}  Be5 {[%clk 0:01:18]} 29. a5 {[%clk 0:00:43]}  Bc7 {[%clk 0:01:06]} 30. Nc4 {[%clk 0:00:30]}  Ke6 {[%clk 0:00:39]} 31. Rg1 {[%clk 0:00:22]}  b5 {[%clk 0:00:28]} 32. axb6 {[%clk 0:00:20]}  Bxb6 {[%clk 0:00:28]} 33. Rxd8 {[%clk 0:00:17]}  Bxd8 {[%clk 0:00:29]} 34. Rg7 {[%clk 0:00:03]}  Kd5 {[%clk 0:00:27]} 35. Nd2 {[%clk 0:00:03]}  Rxb2 {[%clk 0:00:24]} 36. Rxh7 {[%clk 0:00:03]}  Bf6 {[%clk 0:00:21]} 37. Kd1 {[%clk 0:00:02]}  Bxc3 {[%clk 0:00:20]} 38. Nf1 {[%clk 0:00:02]}  Rxf2 {[%clk 0:00:20]} 39. Ng3 {[%clk 0:00:02]}  Rd2+ {[%clk 0:00:14]} 40. Kc1 {[%clk 0:00:02]}  Nb3+ {[%clk 0:00:13]} 41. Kb1 {[%clk 0:00:02]}  Rb2# {[%clk 0:00:13]} 0-1


[Site "https://www.chess.com"]

[Event "Titled Tuesday Blitz October 31 Early 2023"]
[White "Taher, Yoseph Theolifus"]
[Black "Bharath Subramaniyam H"]
[WhiteFideId "7105347"]
[BlackFideId "46634827"]
[WhiteElo "2775"]
[BlackElo "2906"]
[Result "1-0"]
[Round "7"]
[TimeControl "180+1"]
[Date "2023.10.31"]
[WhiteClock "0:00:24"]
[BlackClock "0:00:14"]
[Board "17"]

1. d4 {[%clk 0:02:39]}  Nf6 {[%clk 0:02:58]} 2. Nc3 {[%clk 0:02:39]}  d5 {[%clk 0:02:58]} 3. Bf4 {[%clk 0:02:38]}  Bf5 {[%clk 0:02:56]} 4. e3 {[%clk 0:02:38]}  e6 {[%clk 0:02:56]} 5. Nf3 {[%clk 0:02:37]}  Bb4 {[%clk 0:02:56]} 6. Bd3 {[%clk 0:02:31]}  Ne4 {[%clk 0:02:56]} 7. Bxe4 {[%clk 0:02:31]}  Bxe4 {[%clk 0:02:56]} 8. O-O {[%clk 0:02:31]}  Bg6 {[%clk 0:02:56]} 9. Ne2 {[%clk 0:02:30]}  O-O {[%clk 0:02:54]} 10. c3 {[%clk 0:02:30]}  Bd6 {[%clk 0:02:54]} 11. Ne5 {[%clk 0:02:30]}  Bh5 {[%clk 0:02:52]} 12. Bg3 {[%clk 0:02:30]}  f6 {[%clk 0:02:51]} 13. Nd3 {[%clk 0:02:31]}  Nd7 {[%clk 0:02:50]} 14. Qd2 {[%clk 0:02:30]}  Qe7 {[%clk 0:02:49]} 15. Bxd6 {[%clk 0:02:28]}  cxd6 {[%clk 0:02:49]} 16. Rae1 {[%clk 0:02:26]}  f5 {[%clk 0:02:47]} 17. f3 {[%clk 0:02:25]}  Nf6 {[%clk 0:02:47]} 18. Ng3 {[%clk 0:02:24]}  Be8 {[%clk 0:02:47]} 19. e4 {[%clk 0:02:21]}  dxe4 {[%clk 0:02:46]} 20. fxe4 {[%clk 0:02:22]}  fxe4 {[%clk 0:02:46]} 21. Nxe4 {[%clk 0:02:22]}  Bc6 {[%clk 0:02:39]} 22. Ng5 {[%clk 0:02:18]}  Bd7 {[%clk 0:01:54]} 23. Nxe6 {[%clk 0:02:10]}  Bxe6 {[%clk 0:01:54]} 24. Nf4 {[%clk 0:02:11]}  Ng4 {[%clk 0:01:38]} 25. Rxe6 {[%clk 0:02:06]}  Qg5 {[%clk 0:01:34]} 26. h3 {[%clk 0:02:02]}  Nh6 {[%clk 0:01:31]} 27. Rxd6 {[%clk 0:01:46]}  Nf5 {[%clk 0:01:30]} 28. Rd5 {[%clk 0:01:45]}  Qh6 {[%clk 0:01:31]} 29. Qf2 {[%clk 0:01:39]}  Ne7 {[%clk 0:01:23]} 30. Re5 {[%clk 0:01:21]}  Ng6 {[%clk 0:01:17]} 31. Re4 {[%clk 0:01:20]}  Rf6 {[%clk 0:01:15]} 32. Kh2 {[%clk 0:01:00]}  Raf8 {[%clk 0:01:11]} 33. g3 {[%clk 0:01:01]}  Nh8 {[%clk 0:01:04]} 34. Qf3 {[%clk 0:00:44]}  g5 {[%clk 0:01:02]} 35. Qg4 {[%clk 0:00:41]}  Nf7 {[%clk 0:00:49]} 36. Rfe1 {[%clk 0:00:38]}  Kh8 {[%clk 0:00:47]} 37. Nd3 {[%clk 0:00:35]}  Qg6 {[%clk 0:00:43]} 38. Qe2 {[%clk 0:00:28]}  Nd6 {[%clk 0:00:34]} 39. Re5 {[%clk 0:00:26]}  Nc4 {[%clk 0:00:31]} 40. Re8 {[%clk 0:00:25]}  h5 {[%clk 0:00:19]} 41. Rxf8+ {[%clk 0:00:25]}  Rxf8 {[%clk 0:00:20]} 42. Ne5 {[%clk 0:00:25]}  Nxe5 {[%clk 0:00:19]} 43. Qxe5+ {[%clk 0:00:26]}  Kh7 {[%clk 0:00:20]} 44. Kg2 {[%clk 0:00:25]}  Rf5 {[%clk 0:00:17]} 45. Qe7+ {[%clk 0:00:23]}  Rf7 {[%clk 0:00:17]} 46. Qe4 {[%clk 0:00:22]}  Rf5 {[%clk 0:00:15]} 47. g4 {[%clk 0:00:20]}  hxg4 {[%clk 0:00:16]} 48. hxg4 {[%clk 0:00:20]}  Rf4 {[%clk 0:00:16]} 49. Qxg6+ {[%clk 0:00:21]}  Kxg6 {[%clk 0:00:17]} 50. Kg3 {[%clk 0:00:22]}  Kf6 {[%clk 0:00:17]} 51. Re5 {[%clk 0:00:20]}  Rf1 {[%clk 0:00:16]} 52. Rf5+ {[%clk 0:00:21]}  Rxf5 {[%clk 0:00:17]} 53. gxf5 {[%clk 0:00:22]}  Kxf5 {[%clk 0:00:18]} 54. d5 {[%clk 0:00:22]}  b5 {[%clk 0:00:17]} 55. b3 {[%clk 0:00:22]}  Ke5 {[%clk 0:00:17]} 56. c4 {[%clk 0:00:23]}  bxc4 {[%clk 0:00:14]} 57. bxc4 {[%clk 0:00:24]} 1-0


[Site "https://www.chess.com"]